Workbook

Sheet Sheet1
A1: PGS-M 30% 50% 80% | G1: 80% PGS- M | H1: S1 | I1: S2 | J1: S3 | K1: S4 | L1: 50% PGS- M | M1: S1 | N1: S2 | O1: S3 | P1: S4 | Q1: 30% PGS- M | R1: S1 | S1: S2 | T1: S3 | U1: S4 | W1: eV (Energy) x axis | X1: PGS-M 80% Mean | Y1: SD | Z1: PGS-M 50% Mean | AA1: SD | AB1: PGS-M 30% Mean | AC1: SD
A2: SE Spectrums | H2: 566.96624 | I2: 639.61344 | J2: 719.19024 | K2: 384.79728 | M2: 552.61004 | N2: 730.5616 | O2: 433.10568 | P2: 204.50556 | R2: 529.6316 | S2: 355.71284 | T2: 521.01788 | U2: 385.26872 | W2: 0 | X2: =SUM(H2:K2)/4 -> 577.6418 | Y2: =STDEV(H2:K2) -> 142.8045535 | Z2: =SUM(M2:P2)/4 -> 480.19572 | AA2: =STDEV(M2:P2) -> 220.7181036 | AB2: =SUM(R2:U2)/4 -> 447.90776 | AC2: =STDEV(R2:U2) -> 90.27260248
H3: 631.24964 | I3: 703.8372 | J3: 731.16936 | K3: 418.79776 | M3: 548.24496 | N3: 742.305 | O3: 561.7094 | P3: 191.09792 | R3: 563.4276 | S3: 401.6754 | T3: 680.74516 | U3: 448.04976 | X3: =SUM(H3:K3)/4 -> 621.26349 | Y3: 141.4093501 | Z3: =SUM(M3:P3)/4 -> 510.83932 | AA3: =STDEV(M3:P3) -> 230.7941874 | AB3: =SUM(R3:U3)/4 -> 523.47448 | AC3: =STDEV(R3:U3) -> 124.9722941
H4: 507.88288 | I4: 755.39456 | J4: 837.7006 | K4: 568.43452 | M4: 606.99888 | N4: 819.00772 | O4: 668.30028 | P4: 224.75192 | R4: 584.97468 | S4: 517.76608 | T4: 905.45164 | U4: 682.71328 | X4: 667.35314 | Y4: 154.9034172 | Z4: =SUM(M4:P4)/4 -> 579.7647 | AA4: =STDEV(M4:P4) -> 252.8843913 | AB4: =SUM(R4:U4)/4 -> 672.72642 | AC4: =STDEV(R4:U4) -> 169.2865817
H5: 511.66292 | I5: 945.25424 | J5: 981.65168 | K5: 762.84388 | M5: 724.56068 | N5: 943.04188 | O5: 793.78284 | P5: 317.3132 | R5: 647.99996 | S5: 671.7026 | T5: 1140.40768 | U5: 846.77156 | X5: 800.35318 | Y5: 214.9530779 | Z5: =SUM(M5:P5)/4 -> 694.67465 | AA5: =STDEV(M5:P5) -> 267.5839762 | AB5: =SUM(R5:U5)/4 -> 826.72045 | AC5: =STDEV(R5:U5) -> 227.1367229
H6: 665.20468 | I6: 997.68916 | J6: 1162.09676 | K6: 856.4162 | M6: 906.61036 | N6: 966.9206 | O6: 884.10904 | P6: 464.47632 | R6: 849.69392 | S6: 723.47296 | T6: 1223.66228 | U6: 987.57024 | X6: 920.3517 | Y6: 211.036732 | Z6: =SUM(M6:P6)/4 -> 805.52908 | AA6: =STDEV(M6:P6) -> 230.0408972 | AB6: =SUM(R6:U6)/4 -> 946.09985 | AC6: =STDEV(R6:U6) -> 214.1786881
H7: 777.6204 | I7: 1112.7688 | J7: 1139.7914 | K7: 955.1772 | M7: 1222.72224 | N7: 1393.08816 | O7: 1024.21192 | P7: 633.04168 | R7: 1139.95612 | S7: 727.65912 | T7: 1302.15704 | U7: 1078.40196 | X7: 996.33945 | Y7: 166.9996099 | Z7: =SUM(M7:P7)/4 -> 1068.266 | AA7: =STDEV(M7:P7) -> 326.9694871 | AB7: =SUM(R7:U7)/4 -> 1062.04356 | AC7: =STDEV(R7:U7) -> 242.0780874
H8: 891.84804 | I8: 1301.0466 | J8: 1313.4148 | K8: 1102.47664 | M8: 1511.45936 | N8: 1558.8476 | O8: 1242.28132 | P8: 733.33912 | R8: 1421.74376 | S8: 794.63484 | T8: 1472.03164 | U8: 1095.69472 | W8: 1 | X8: 1152.19652 | Y8: 198.6630964 | Z8: =SUM(M8:P8)/4 -> 1261.48185 | AA8: =STDEV(M8:P8) -> 378.6900881 | AB8: =SUM(R8:U8)/4 -> 1196.02624 | AC8: =STDEV(R8:U8) -> 315.3351918
H9: 1071.62004 | I9: 1504.98132 | J9: 1632.64784 | K9: 1259.12252 | M9: 1821.89124 | N9: 1570.91476 | O9: 1391.387 | P9: 727.9062 | R9: 1721.28424 | S9: 924.73808 | T9: 1714.28648 | U9: 1358.47708 | X9: 1367.09293 | Y9: 250.6620943 | Z9: =SUM(M9:P9)/4 -> 1378.0248 | AA9: =STDEV(M9:P9) -> 467.9945497 | AB9: =SUM(R9:U9)/4 -> 1429.69647 | AC9: =STDEV(R9:U9) -> 376.8598672
H10: 1334.10704 | I10: 1834.72804 | J10: 1894.55264 | K10: 1428.094 | M10: 2267.1578 | N10: 1746.28192 | O10: 1582.72348 | P10: 769.57468 | R10: 2073.84184 | S10: 1091.40348 | T10: 2109.07772 | U10: 1632.72168 | X10: 1622.87043 | Y10: 282.8527433 | Z10: =SUM(M10:P10)/4 -> 1591.43447 | AA10: =STDEV(M10:P10) -> 620.7815362 | AB10: =SUM(R10:U10)/4 -> 1726.76118 | AC10: =STDEV(R10:U10) -> 475.7988916
H11: 1471.02344 | I11: 2301.19804 | J11: 2241.79944 | K11: 1618.47908 | M11: 2874.15668 | N11: 2298.7528 | O11: 1806.27408 | P11: 907.27776 | R11: 2562.83588 | S11: 1195.10892 | T11: 2453.07556 | U11: 1643.20696 | X11: 1908.125 | Y11: 424.5772719 | Z11: =SUM(M11:P11)/4 -> 1971.61533 | AA11: =STDEV(M11:P11) -> 833.0170076 | AB11: =SUM(R11:U11)/4 -> 1963.55683 | AC11: =STDEV(R11:U11) -> 656.2266368
H12: 1677.11088 | I12: 2839.9858 | J12: 2513.84872 | K12: 1926.1874 | M12: 3473.32568 | N12: 2725.23844 | O12: 2044.34844 | P12: 1071.1912 | R12: 3113.09724 | S12: 1390.90704 | T12: 2850.19276 | U12: 2123.96216 | X12: 2239.2832 | Y12: 532.3834883 | Z12: =SUM(M12:P12)/4 -> 2328.52594 | AA12: =STDEV(M12:P12) -> 1021.37077 | AB12: =SUM(R12:U12)/4 -> 2369.5398 | AC12: =STDEV(R12:U12) -> 775.0129871
H13: 1913.28812 | I13: 3257.36356 | J13: 3078.39812 | K13: 2349.7876 | M13: 3972.68288 | N13: 3028.3062 | O13: 2368.69916 | P13: 1276.24204 | R13: 3720.25516 | S13: 1676.23048 | T13: 3247.98304 | U13: 2876.80356 | X13: 2649.70935 | Y13: 628.5663541 | Z13: =SUM(M13:P13)/4 -> 2661.48257 | AA13: =STDEV(M13:P13) -> 1134.08102 | AB13: =SUM(R13:U13)/4 -> 2880.31806 | AC13: =STDEV(R13:U13) -> 873.7869919
H14: 2327.5788 | I14: 3779.43508 | J14: 3841.0858 | K14: 2494.62192 | M14: 4397.20892 | N14: 3941.01404 | O14: 2586.3738 | P14: 1542.04048 | R14: 4294.77864 | S14: 2007.6812 | T14: 3821.34496 | U14: 3256.07136 | W14: 2 | X14: 3110.6804 | Y14: 811.0694662 | Z14: =SUM(M14:P14)/4 -> 3116.65931 | AA14: =STDEV(M14:P14) -> 1301.280806 | AB14: =SUM(R14:U14)/4 -> 3344.96904 | AC14: =STDEV(R14:U14) -> 987.4738575
H15: 2782.12932 | I15: 4272.64652 | J15: 4293.94368 | K15: 2828.41564 | M15: 4667.8382 | N15: 4189.70716 | O15: 2904.56172 | P15: 1820.32356 | R15: 4845.93176 | S15: 2367.75344 | T15: 4253.20672 | U15: 3587.49652 | X15: 3544.28379 | Y15: 853.5902337 | Z15: =SUM(M15:P15)/4 -> 3395.60766 | AA15: =STDEV(M15:P15) -> 1287.350078 | AB15: =SUM(R15:U15)/4 -> 3763.59711 | AC15: =STDEV(R15:U15) -> 1063.101882
H16: 3488.4572 | I16: 4530.07832 | J16: 4312.37528 | K16: 3280.43572 | M16: 4965.243 | N16: 4791.10556 | O16: 3405.86148 | P16: 2160.26304 | R16: 5268.39596 | S16: 2561.58344 | T16: 4567.69128 | U16: 3724.11472 | X16: 3902.83663 | Y16: 611.0775314 | Z16: =SUM(M16:P16)/4 -> 3830.61827 | AA16: =STDEV(M16:P16) -> 1314.079404 | AB16: =SUM(R16:U16)/4 -> 4030.44635 | AC16: =STDEV(R16:U16) -> 1165.124982
H17: 4022.80888 | I17: 5062.70896 | J17: 4636.76576 | K17: 3658.09608 | M17: 5446.78488 | N17: 5455.3134 | O17: 3969.6952 | P17: 2605.53244 | R17: 5538.9798 | S17: 2794.28452 | T17: 4881.60784 | U17: 3940.8408 | X17: 4345.09492 | Y17: 626.0664201 | Z17: =SUM(M17:P17)/4 -> 4369.33148 | AA17: =STDEV(M17:P17) -> 1367.596282 | AB17: =SUM(R17:U17)/4 -> 4288.92824 | AC17: =STDEV(R17:U17) -> 1192.898812
H18: 4459.94736 | I18: 5843.26024 | J18: 5233.01808 | K18: 4060.67176 | M18: 5824.57588 | N18: 5468.90564 | O18: 4586.82436 | P18: 3070.45748 | R18: 5727.36836 | S18: 3217.91312 | T18: 5194.12428 | U18: 4163.73536 | X18: 4899.22436 | Y18: 795.5620101 | Z18: =SUM(M18:P18)/4 -> 4737.69084 | AA18: =STDEV(M18:P18) -> 1227.24922 | AB18: =SUM(R18:U18)/4 -> 4575.78528 | AC18: =STDEV(R18:U18) -> 1113.865439
H19: 5155.79564 | I19: 6195.18168 | J19: 5822.82076 | K19: 4450.39644 | M19: 5824.87692 | N19: 5497.29712 | O19: 5243.02624 | P19: 3578.2012 | R19: 5794.29296 | S19: 3504.2618 | T19: 5503.94556 | U19: 4692.09464 | X19: 5406.04863 | Y19: 768.6194651 | Z19: =SUM(M19:P19)/4 -> 5035.85037 | AA19: =STDEV(M19:P19) -> 1000.526352 | AB19: =SUM(R19:U19)/4 -> 4873.64874 | AC19: =STDEV(R19:U19) -> 1025.189794
H20: 5698.02832 | I20: 6361.6426 | J20: 6118.82544 | K20: 5323.03756 | M20: 5790.38796 | N20: 5657.9332 | O20: 5843.88788 | P20: 4225.49116 | R20: 5696.91504 | S20: 3924.98508 | T20: 5420.17408 | U20: 5181.2108 | W20: 3 | X20: 5875.38348 | Y20: 459.0761693 | Z20: =SUM(M20:P20)/4 -> 5379.42505 | AA20: =STDEV(M20:P20) -> 773.2499479 | AB20: =SUM(R20:U20)/4 -> 5055.82125 | AC20: =STDEV(R20:U20) -> 782.7871603
H21: 6350.78528 | I21: 6361.63976 | J21: 5946.86344 | K21: 5855.78464 | M21: 5648.08124 | N21: 6252.42188 | O21: 6225.6634 | P21: 4878.6798 | R21: 5641.87584 | S21: 4555.08736 | T21: 5373.27148 | U21: 5384.14584 | X21: 6128.76828 | Y21: 265.2860802 | Z21: =SUM(M21:P21)/4 -> 5751.21158 | AA21: =STDEV(M21:P21) -> 645.0488014 | AB21: =SUM(R21:U21)/4 -> 5238.59513 | AC21: =STDEV(R21:U21) -> 472.2784952
H22: 6951.70372 | I22: 6053.35776 | J22: 5770.47672 | K22: 6399.42596 | M22: 5330.4812 | N22: 6173.12624 | O22: 6388.92932 | P22: 5574.08504 | R22: 5362.29204 | S22: 4989.39436 | T22: 5429.4978 | U22: 5502.35232 | X22: 6293.74104 | Y22: 508.4859423 | Z22: =SUM(M22:P22)/4 -> 5866.65545 | AA22: =STDEV(M22:P22) -> 496.5798397 | AB22: =SUM(R22:U22)/4 -> 5320.88413 | AC22: =STDEV(R22:U22) -> 228.2744809
H23: 6973.84152 | I23: 6083.0954 | J23: 6206.18952 | K23: 6729.9764 | M23: 5238.37716 | N23: 5833.9138 | O23: 6409.15012 | P23: 5922.16112 | R23: 5076.51704 | S23: 4932.4126 | T23: 5526.05496 | U23: 5555.38932 | X23: 6498.27571 | Y23: 423.2954372 | Z23: =SUM(M23:P23)/4 -> 5850.90055 | AA23: =STDEV(M23:P23) -> 480.3450511 | AB23: =SUM(R23:U23)/4 -> 5272.59348 | AC23: =STDEV(R23:U23) -> 315.3755488
H24: 6876.705 | I24: 6327.15364 | J24: 6744.93468 | K24: 6476.77904 | M24: 4996.01724 | N24: 5455.80188 | O24: 6287.7174 | P24: 5957.2408 | R24: 5134.9756 | S24: 4611.98108 | T24: 5576.3826 | U24: 5863.9894 | X24: 6606.39309 | Y24: 249.6909912 | Z24: =SUM(M24:P24)/4 -> 5674.19433 | AA24: =STDEV(M24:P24) -> 566.9054269 | AB24: =SUM(R24:U24)/4 -> 5296.83217 | AC24: =STDEV(R24:U24) -> 546.2094626
H25: 6685.27196 | I25: 6476.36156 | J25: 6432.90104 | K25: 6623.945 | M25: 4731.84896 | N25: 5682.49068 | O25: 6140.97744 | P25: 5767.60548 | R25: 5068.19016 | S25: 4577.725 | T25: 5407.74908 | U25: 6087.15376 | X25: 6554.61989 | Y25: 119.4651678 | Z25: =SUM(M25:P25)/4 -> 5580.73064 | AA25: =STDEV(M25:P25) -> 599.9316336 | AB25: =SUM(R25:U25)/4 -> 5285.2045 | AC25: =STDEV(R25:U25) -> 633.9722014
H26: 6554.1094 | I26: 6531.96592 | J26: 6152.008 | K26: 6208.26272 | M26: 4482.61908 | N26: 5529.93724 | O26: 6069.92632 | P26: 5512.795 | R26: 4792.70732 | S26: 4416.43856 | T26: 5237.09916 | U26: 5968.71156 | W26: 4 | X26: 6361.58651 | Y26: 210.970411 | Z26: =SUM(M26:P26)/4 -> 5398.81941 | AA26: =STDEV(M26:P26) -> 663.3224077 | AB26: =SUM(R26:U26)/4 -> 5103.73915 | AC26: =STDEV(R26:U26) -> 667.1044552
H27: 6652.11212 | I27: 7073.39772 | J27: 6208.95568 | K27: 5596.8732 | M27: 4462.53176 | N27: 4757.36068 | O27: 6150.25572 | P27: 5314.64536 | R27: 4724.27752 | S27: 4255.4134 | T27: 4990.95636 | U27: 5497.09264 | X27: 6382.83468 | Y27: 631.7586582 | Z27: =SUM(M27:P27)/4 -> 5171.19838 | AA27: =STDEV(M27:P27) -> 742.2039997 | AB27: =SUM(R27:U27)/4 -> 4866.93498 | AC27: =STDEV(R27:U27) -> 518.5845392
H28: 6417.97968 | I28: 6856.0866 | J28: 5675.0016 | K28: 5440.61356 | M28: 4503.65212 | N28: 4680.98456 | O28: 6120.69416 | P28: 5278.7222 | R28: 4572.73228 | S28: 4423.70044 | T28: 4289.34288 | U28: 4890.0398 | X28: 6097.42036 | Y28: 655.2774279 | Z28: =SUM(M28:P28)/4 -> 5146.01326 | AA28: =STDEV(M28:P28) -> 729.4961836 | AB28: =SUM(R28:U28)/4 -> 4543.95385 | AC28: =STDEV(R28:U28) -> 258.1287221
H29: 6037.87408 | I29: 5703.02672 | J29: 5437.78776 | K29: 5256.5844 | M29: 4444.0746 | N29: 5098.581 | O29: 5942.05816 | P29: 5361.38892 | R29: 4348.20756 | S29: 4479.73932 | T29: 3797.73604 | U29: 4348.36376 | X29: 5608.81824 | Y29: 339.7470896 | Z29: =SUM(M29:P29)/4 -> 5211.52567 | AA29: =STDEV(M29:P29) -> 621.2552766 | AB29: =SUM(R29:U29)/4 -> 4243.51167 | AC29: =STDEV(R29:U29) -> 303.5756935
H30: 5614.99524 | I30: 5368.878 | J30: 5575.84016 | K30: 5447.88396 | M30: 4496.4868 | N30: 5266.5528 | O30: 5887.41372 | P30: 5266.23472 | R30: 4265.5238 | S30: 4376.54792 | T30: 4122.47584 | U30: 4218.25484 | X30: 5501.89934 | Y30: 113.8277436 | Z30: =SUM(M30:P30)/4 -> 5229.17201 | AA30: =STDEV(M30:P30) -> 569.4678023 | AB30: =SUM(R30:U30)/4 -> 4245.7006 | AC30: =STDEV(R30:U30) -> 105.5960726
H31: 5200.54552 | I31: 5416.02768 | J31: 5349.69096 | K31: 5301.7546 | M31: 4540.58916 | N31: 5081.25984 | O31: 5583.04524 | P31: 5087.95656 | R31: 4148.8566 | S31: 4515.02348 | T31: 3726.91212 | U31: 4358.07372 | X31: 5317.00469 | Y31: 90.6812151 | Z31: =SUM(M31:P31)/4 -> 5073.2127 | AA31: =STDEV(M31:P31) -> 425.7930609 | AB31: =SUM(R31:U31)/4 -> 4187.21648 | AC31: =STDEV(R31:U31) -> 341.5656159
H32: 4833.04384 | I32: 5048.6254 | J32: 4986.59128 | K32: 5257.76016 | M32: 4413.11008 | N32: 5005.82092 | O32: 4969.55128 | P32: 4798.51228 | R32: 4048.84884 | S32: 4392.69332 | T32: 3404.5494 | U32: 4177.62864 | W32: 5 | X32: 5031.50517 | Y32: 175.9626663 | Z32: =SUM(M32:P32)/4 -> 4796.74864 | AA32: =STDEV(M32:P32) -> 271.2647082 | AB32: =SUM(R32:U32)/4 -> 4005.93005 | AC32: =STDEV(R32:U32) -> 425.2712631
H33: 4624.51116 | I33: 4920.7118 | J33: 4865.67828 | K33: 5366.90704 | M33: 4194.00124 | N33: 4523.95244 | O33: 4574.36812 | P33: 4479.28492 | R33: 3970.66932 | S33: 4110.19 | T33: 3821.4472 | U33: 3995.45684 | X33: 4944.45207 | Y33: 309.6230493 | Z33: =SUM(M33:P33)/4 -> 4442.90168 | AA33: =STDEV(M33:P33) -> 170.418915 | AB33: =SUM(R33:U33)/4 -> 3974.44084 | AC33: =STDEV(R33:U33) -> 118.730486
H34: 4456.95684 | I34: 4660.99664 | J34: 4710.67676 | K34: 5185.4708 | M34: 3976.38908 | N34: 4382.98052 | O34: 4432.39652 | P34: 4290.39652 | R34: 3976.38908 | S34: 4018.43812 | T34: 3710.86044 | U34: 4062.48084 | X34: =SUM(H34:K34)/4 -> 4753.52526 | Y34: =STDEV(H34:K34) -> 308.181395 | Z34: =SUM(M34:P34)/4 -> 4270.54066 | AA34: =STDEV(M34:P34) -> 204.7432935 | AB34: =SUM(R34:U34)/4 -> 3942.04212 | AC34: =STDEV(R34:U34) -> 158.0785848
H35: 4458.29732 | I35: 4144.90332 | J35: 4467.19788 | K35: 4944.07932 | M35: 3503.02924 | N35: 4350.11036 | O35: 4381.92688 | P35: 4247.55512 | R35: 3954.913 | S35: 3877.31568 | T35: 3648.051 | U35: 4105.74824 | X35: 4503.61946 | Y35: 329.6780173 | Z35: =SUM(M35:P35)/4 -> 4120.6554 | AA35: =STDEV(M35:P35) -> 415.7234567 | AB35: =SUM(R35:U35)/4 -> 3896.50698 | AC35: =STDEV(R35:U35) -> 190.8680592
H36: 4375.57664 | I36: 4225.6644 | J36: 4377.434 | K36: 4760.44208 | M36: 3201.97788 | N36: 4103.91644 | O36: 4197.99712 | P36: 4263.12968 | R36: 3936.24284 | S36: 3922.59664 | T36: 3673.47184 | U36: 4110.73528 | X36: 4434.77928 | Y36: 228.4576737 | Z36: =SUM(M36:P36)/4 -> 3941.75528 | AA36: =STDEV(M36:P36) -> 497.4964753 | AB36: =SUM(R36:U36)/4 -> 3910.76165 | AC36: =STDEV(R36:U36) -> 179.8937322
H37: 4190.2922 | I37: 4161.78996 | J37: 4023.3712 | K37: 4546.69516 | M37: 2990.165 | N37: 3834.30388 | O37: 4265.92992 | P37: 4153.84364 | R37: 3833.83244 | S37: 3764.80908 | T37: 3603.16764 | U37: 4183.08712 | X37: 4230.53713 | Y37: 223.0242515 | Z37: =SUM(M37:P37)/4 -> 3811.06061 | AA37: =STDEV(M37:P37) -> 577.008419 | AB37: =SUM(R37:U37)/4 -> 3846.22407 | AC37: =STDEV(R37:U37) -> 244.4961456
H38: 4117.65636 | I38: 4071.70516 | J38: 3921.26468 | K38: 4255.98992 | M38: 2769.6816 | N38: 3628.14828 | O38: 4333.1584 | P38: 4061.69132 | R38: 3734.20808 | S38: 3548.6794 | T38: 3697.34772 | U38: 4184.70592 | X38: 4091.65403 | Y38: 137.9769231 | Z38: =SUM(M38:P38)/4 -> 3698.1699 | AA38: =STDEV(M38:P38) -> 683.7035831 | AB38: =SUM(R38:U38)/4 -> 3791.23528 | AC38: =STDEV(R38:U38) -> 274.2987878
H39: 4099.93192 | I39: 3948.88368 | J39: 3924.21544 | K39: 3895.46044 | M39: 2656.24348 | N39: 3432.96076 | O39: 4099.15092 | P39: 4029.13356 | R39: 3555.26252 | S39: 3594.38352 | T39: 3652.08948 | U39: 3990.16024 | W39: 6 | X39: 3967.12287 | Y39: 91.1911239 | Z39: =SUM(M39:P39)/4 -> 3554.37218 | AA39: =STDEV(M39:P39) -> 669.217986 | AB39: =SUM(R39:U39)/4 -> 3697.97394 | AC39: =STDEV(R39:U39) -> 198.8095756
H40: 3960.65548 | I40: 3750.22 | J40: 3671.33048 | K40: 3521.17968 | M40: 2725.69568 | N40: 3181.99848 | O40: 3935.50728 | P40: 3877.78712 | R40: 3483.9132 | S40: 3481.45092 | T40: 3404.39888 | U40: 3750.68576 | X40: 3725.84641 | Y40: 183.1118313 | Z40: =SUM(M40:P40)/4 -> 3430.24714 | AA40: =STDEV(M40:P40) -> 581.2629926 | AB40: =SUM(R40:U40)/4 -> 3530.11219 | AC40: =STDEV(R40:U40) -> 151.6122268
H41: 3915.1956 | I41: 3304.16676 | J41: 3562.58404 | K41: 3300.29584 | M41: 2952.87296 | N41: 3132.4206 | O41: 3690.54024 | P41: 3673.966 | R41: 3379.47504 | S41: 3324.87036 | T41: 3111.35348 | U41: 3527.95876 | X41: 3520.56056 | Y41: 290.3134003 | Z41: =SUM(M41:P41)/4 -> 3362.44995 | AA41: =STDEV(M41:P41) -> 376.5422953 | AB41: =SUM(R41:U41)/4 -> 3335.91441 | AC41: =STDEV(R41:U41) -> 172.5573752
H42: 3810.499 | I42: 2924.45024 | J42: 3522.22764 | K42: 3038.78296 | M42: 2966.49644 | N42: 3132.65348 | O42: 3509.61236 | P42: 3473.09848 | R42: 3060.34424 | S42: 3238.50312 | T42: 2916.04952 | U42: 3347.9766 | X42: 3323.98996 | Y42: 415.1161462 | Z42: =SUM(M42:P42)/4 -> 3270.46519 | AA42: =STDEV(M42:P42) -> 264.3486886 | AB42: =SUM(R42:U42)/4 -> 3140.71837 | AC42: =STDEV(R42:U42) -> 191.0095322
H43: 3462.5422 | I43: 3060.64528 | J43: 3143.83172 | K43: 2852.6806 | M43: 2738.42172 | N43: 2977.9246 | O43: 3308.72212 | P43: 3400.66712 | R43: 2900.58856 | S43: 3258.4882 | T43: 2896.99312 | U43: 3197.57304 | X43: 3129.92495 | Y43: 253.3059649 | Z43: =SUM(M43:P43)/4 -> 3106.43389 | AA43: =STDEV(M43:P43) -> 305.2001073 | AB43: =SUM(R43:U43)/4 -> 3063.41073 | AC43: =STDEV(R43:U43) -> 191.712132
H44: 3528.8704 | I44: 2931.31452 | J44: 2950.84804 | K44: 2697.72736 | M44: 2568.38524 | N44: 2661.55144 | O44: 3291.79856 | P44: 3247.09128 | R44: 2834.8596 | S44: 3182.3762 | T44: 2886.59304 | U44: 3090.7294 | X44: 3027.19008 | Y44: 353.6707779 | Z44: =SUM(M44:P44)/4 -> 2942.20663 | AA44: =STDEV(M44:P44) -> 380.210001 | AB44: =SUM(R44:U44)/4 -> 2998.63956 | AC44: =STDEV(R44:U44) -> 164.9424035
H45: 3376.4334 | I45: 2735.99352 | J45: 2966.88836 | K45: 2605.06668 | M45: 2512.14472 | N45: 2750.08844 | O45: 3077.40696 | P45: 3174.2538 | R45: 2719.4988 | S45: 3092.50724 | T45: 2824.97924 | U45: 3075.83076 | W45: 7 | X45: 2921.09549 | Y45: 338.4112623 | Z45: =SUM(M45:P45)/4 -> 2878.47348 | AA45: =STDEV(M45:P45) -> 304.2696206 | AB45: =SUM(R45:U45)/4 -> 2928.20401 | AC45: =STDEV(R45:U45) -> 185.2947441
H46: 3043.83248 | I46: 2626.36668 | J46: 2734.84332 | K46: 3058.64308 | M46: 2313.35892 | N46: 2761.545 | O46: 2724.86924 | P46: 3164.03264 | R46: 2602.80888 | S46: 3120.78228 | T46: 2706.98008 | U46: 3038.70628 | X46: 2865.92139 | Y46: 218.6030842 | Z46: =SUM(M46:P46)/4 -> 2740.95145 | AA46: =STDEV(M46:P46) -> 347.6184675 | AB46: =SUM(R46:U46)/4 -> 2867.31938 | AC46: =STDEV(R46:U46) -> 251.1914322
H47: 3015.5546 | I47: 2617.39512 | J47: 2596.60348 | K47: 3128.46448 | M47: 2278.63424 | N47: 2595.2062 | O47: 2750.62804 | P47: 3042.19664 | R47: 2520.76696 | S47: 3057.82516 | T47: 2602.39424 | U47: 2746.85652 | X47: 2839.50442 | Y47: 272.5343954 | Z47: =SUM(M47:P47)/4 -> 2666.66628 | AA47: =STDEV(M47:P47) -> 318.1970226 | AB47: =SUM(R47:U47)/4 -> 2731.96072 | AC47: =STDEV(R47:U47) -> 236.5021459
H48: 3050.21396 | I48: 2756.93 | J48: 2855.37576 | K48: 3065.00184 | M48: 2349.04068 | N48: 2638.45372 | O48: 2703.27672 | P48: 3035.49424 | R48: 2455.42424 | S48: 2849.98544 | T48: 2615.59456 | U48: 2713.14288 | X48: 2931.88039 | Y48: 150.7589153 | Z48: =SUM(M48:P48)/4 -> 2681.56634 | AA48: =STDEV(M48:P48) -> 281.7613124 | AB48: =SUM(R48:U48)/4 -> 2658.53678 | AC48: =STDEV(R48:U48) -> 166.0654025
H49: 2895.877 | I49: 3073.83424 | J49: 2903.8574 | K49: 3208.27416 | M49: 2290.22712 | N49: 2624.56044 | O49: 2591.16772 | P49: 3060.06024 | R49: 2419.02964 | S49: 2651.71084 | T49: 2509.35584 | U49: 2758.52892 | X49: 3020.4607 | Y49: 149.7108974 | Z49: =SUM(M49:P49)/4 -> 2641.50388 | AA49: =STDEV(M49:P49) -> 316.9677154 | AB49: =SUM(R49:U49)/4 -> 2584.65631 | AC49: =STDEV(R49:U49) -> 150.3666066
H50: 2662.38924 | I50: 2811.13424 | J50: 2805.24408 | K50: 2838.14832 | M50: 2315.74736 | N50: 2515.70892 | O50: 2438.282 | P50: 3010.9822 | R50: 2372.57576 | S50: 2712.78788 | T50: 2470.00764 | U50: 2590.52304 | X50: 2779.22897 | Y50: 79.19963071 | Z50: =SUM(M50:P50)/4 -> 2570.18012 | AA50: =STDEV(M50:P50) -> 305.1812187 | AB50: =SUM(R50:U50)/4 -> 2536.47358 | AC50: =STDEV(R50:U50) -> 147.5220809
H51: 2542.64348 | I51: 2775.76488 | J51: 2601.57348 | K51: 2886.42832 | M51: 2298.42052 | N51: 2669.21092 | O51: 2353.41712 | P51: 2842.02492 | R51: 2342.37236 | S51: 2666.48736 | T51: 2393.37876 | U51: 2425.75192 | W51: 8 | X51: 2701.60254 | Y51: 158.0447376 | Z51: =SUM(M51:P51)/4 -> 2540.76837 | AA51: =STDEV(M51:P51) -> 258.8989306 | AB51: =SUM(R51:U51)/4 -> 2456.9976 | AC51: =STDEV(R51:U51) -> 143.8153382
H52: 2450.55364 | I52: 2906.85076 | J52: 2480.86212 | K52: 2900.9606 | M52: 2421.4834 | N52: 2770.1076 | O52: 2277.71408 | P52: 2753.55608 | R52: 2354.19244 | S52: 2605.49552 | T52: 2466.9518 | U52: 2343.88892 | X52: 2684.80678 | Y52: 253.3074291 | Z52: =SUM(M52:P52)/4 -> 2555.71529 | AA52: =STDEV(M52:P52) -> 245.2263674 | AB52: =SUM(R52:U52)/4 -> 2442.63217 | AC52: =STDEV(R52:U52) -> 122.0488023
H53: 2654.12484 | I53: 2899.10892 | J53: 2542.78548 | K53: 2904.46516 | M53: 2565.99396 | N53: 2319.83696 | O53: 2400.865 | P53: 2695.37584 | R53: 2309.08188 | S53: 2549.11016 | T53: 2407.40268 | U53: 2384.38164 | X53: 2750.1211 | Y53: 180.9445593 | Z53: =SUM(M53:P53)/4 -> 2495.51794 | AA53: =STDEV(M53:P53) -> 168.0605401 | AB53: =SUM(R53:U53)/4 -> 2412.49409 | AC53: =STDEV(R53:U53) -> 100.2900262
H54: 2492.77876 | I54: 2784.90968 | J54: 2415.42 | K54: 2855.40984 | M54: 2507.95856 | N54: 2512.11348 | O54: 2306.60256 | P54: 2594.39112 | R54: 2278.92392 | S54: 2382.44192 | T54: 2271.3894 | U54: 2238.45676 | X54: 2637.12957 | Y54: 215.6212165 | Z54: =SUM(M54:P54)/4 -> 2480.26643 | AA54: =STDEV(M54:P54) -> 122.4264041 | AB54: =SUM(R54:U54)/4 -> 2292.803 | AC54: =STDEV(R54:U54) -> 62.28916681
H55: 2317.3406 | I55: 2535.75364 | J55: 2525.63756 | K55: 2727.44228 | M55: 2597.25384 | N55: 2847.72196 | O55: 2106.83696 | P55: 2551.82236 | R55: 2299.76668 | S55: 2262.42636 | T55: 2431.53984 | U55: 2060.17576 | X55: 2526.54352 | Y55: 167.5428508 | Z55: =SUM(M55:P55)/4 -> 2525.90878 | AA55: =STDEV(M55:P55) -> 308.1917933 | AB55: =SUM(R55:U55)/4 -> 2263.47716 | AC55: =STDEV(R55:U55) -> 153.7254664
H56: 2271.72168 | I56: 2525.90168 | J56: 2341.14548 | K56: 2687.48064 | M56: 2475.44908 | N56: 2427.87908 | O56: 2192.94576 | P56: 2402.78484 | R56: 2257.27744 | S56: 2143.16908 | T56: 2440.70168 | U56: 2193.59044 | X56: 2456.56237 | Y56: 187.6329098 | Z56: =SUM(M56:P56)/4 -> 2374.76469 | AA56: =STDEV(M56:P56) -> 124.9022777 | AB56: =SUM(R56:U56)/4 -> 2258.68466 | AC56: =STDEV(R56:U56) -> 130.0170278
H57: 2144.34484 | I57: 2182.41788 | J57: 2295.44136 | K57: 2530.96256 | M57: 2414.6106 | N57: 2418.83652 | O57: 2172.07744 | P57: 2305.96356 | R57: 2191.53712 | S57: 2192.36924 | T57: 2278.4894 | U57: 2200.96592 | W57: 9 | X57: 2288.29166 | Y57: 174.0404438 | Z57: =SUM(M57:P57)/4 -> 2327.87203 | AA57: =STDEV(M57:P57) -> 116.2612766 | AB57: =SUM(R57:U57)/4 -> 2215.84042 | AC57: =STDEV(R57:U57) -> 41.98290178
H58: 2235.96892 | I58: 2358.73076 | J58: 2431.27288 | K58: 2313.31348 | M58: 2465.1626 | N58: 2503.21576 | O58: 2251.12032 | P58: 2178.33964 | R58: 2213.10408 | S58: 2176.22668 | T58: 2230.02196 | U58: 2245.09668 | X58: 2334.82151 | Y58: 81.87174709 | Z58: =SUM(M58:P58)/4 -> 2349.45958 | AA58: =STDEV(M58:P58) -> 159.1443743 | AB58: =SUM(R58:U58)/4 -> 2216.11235 | AC58: =STDEV(R58:U58) -> 29.62816788
H59: 2290.70424 | I59: 2260.0294 | J59: 1893.63532 | K59: 2177.83412 | M59: 2126.7056 | N59: 2177.85684 | O59: 2361.47136 | P59: 2196.6406 | R59: 2186.64664 | S59: 2070.30604 | T59: 2341.0262 | U59: 2317.3832 | X59: 2155.55077 | Y59: 180.9958519 | Z59: =SUM(M59:P59)/4 -> 2215.6686 | AA59: =STDEV(M59:P59) -> 101.5950362 | AB59: =SUM(R59:U59)/4 -> 2228.84052 | AC59: =STDEV(R59:U59) -> 125.6170607
H60: 2188.93 | I60: 1942.94908 | J60: 2172.69088 | K60: 2181.7306 | M60: 2190.89528 | N60: 2242.5918 | O60: 2340.50364 | P60: 2274.07604 | R60: 2189.91832 | S60: 2043.9906 | T60: 2248.61544 | U60: 2169.11816 | X60: 2121.57514 | Y60: 119.2692259 | Z60: =SUM(M60:P60)/4 -> 2262.01669 | AA60: =STDEV(M60:P60) -> 62.55986614 | AB60: =SUM(R60:U60)/4 -> 2162.91063 | AC60: =STDEV(R60:U60) -> 86.13020519
H61: 2157.34636 | I61: 1922.8788 | J61: 2310.55016 | K61: 2070.1186 | M61: 2263.267 | N61: 2135.64592 | O61: 2071.70332 | P61: 2180.29924 | R61: 2116.2544 | S61: 2061.5844 | T61: 2208.17668 | U61: 2231.72028 | X61: 2115.22348 | Y61: 162.2321126 | Z61: =SUM(M61:P61)/4 -> 2162.72887 | AA61: =STDEV(M61:P61) -> 80.48968965 | AB61: =SUM(R61:U61)/4 -> 2154.43394 | AC61: =STDEV(R61:U61) -> 79.45685371
H62: 2270.6226 | I62: 1904.58636 | J62: 1993.33352 | K62: 1940.3306 | M62: 2010.09804 | N62: 1881.05412 | O62: 2081.75408 | P62: 2084.78152 | R62: 2008.55592 | S62: 2138.04288 | T62: 2117.15184 | U62: 2278.06624 | X62: 2027.21827 | Y62: 166.3148587 | Z62: =SUM(M62:P62)/4 -> 2014.42194 | AA62: =STDEV(M62:P62) -> 95.37602616 | AB62: =SUM(R62:U62)/4 -> 2135.45422 | AC62: =STDEV(R62:U62) -> 110.7294677
H63: 2358.37576 | I63: 1877.4956 | J63: 2029.10332 | K63: 1865.44548 | M63: 1937.5474 | N63: 2186.9562 | O63: 2106.9676 | P63: 2091.11756 | R63: 1989.01956 | S63: 2016.22108 | T63: 1960.53152 | U63: 2130.50836 | X63: 2032.60504 | Y63: 229.593903 | Z63: =SUM(M63:P63)/4 -> 2080.64719 | AA63: =STDEV(M63:P63) -> 104.2137997 | AB63: =SUM(R63:U63)/4 -> 2024.07013 | AC63: =STDEV(R63:U63) -> 74.5126428
H64: 2112.67316 | I64: 1971.80064 | J64: 1828.7612 | K64: 1928.64968 | M64: 1900.36896 | N64: 2260.60876 | O64: 1956.73728 | P64: 2030.36712 | R64: 1938.5556 | S64: 1959.83856 | T64: 1964.3144 | U64: 2020.2624 | W64: 10 | X64: 1960.47117 | Y64: 117.8331109 | Z64: =SUM(M64:P64)/4 -> 2037.02053 | AA64: =STDEV(M64:P64) -> 158.2772002 | AB64: =SUM(R64:U64)/4 -> 1970.74274 | AC64: =STDEV(R64:U64) -> 34.87326294
H65: 2171.75652 | I65: 1896.3106 | J65: 1819.5312 | K65: 1914.1174 | M65: 1840.65228 | N65: 1770.80816 | O65: 1828.818 | P65: 2029.19988 | R65: 1979.01424 | S65: 1960.10552 | T65: 1862.73044 | U65: 1909.32348 | X65: 1950.42893 | Y65: 153.1529069 | Z65: =SUM(M65:P65)/4 -> 1867.36958 | AA65: =STDEV(M65:P65) -> 112.1207567 | AB65: =SUM(R65:U65)/4 -> 1927.79342 | AC65: =STDEV(R65:U65) -> 52.41492872
H66: 2353.02804 | I66: 1581.87148 | J66: 1829.85744 | K66: 1778.62668 | M66: 1793.13908 | N66: 1806.39336 | O66: 1872.65908 | P66: 2069.15016 | R66: 1914.67972 | S66: 1939.43316 | T66: 1730.64772 | U66: 1802.57924 | X66: 1885.84591 | Y66: 329.2872448 | Z66: =SUM(M66:P66)/4 -> 1885.33542 | AA66: =STDEV(M66:P66) -> 127.3846696 | AB66: =SUM(R66:U66)/4 -> 1846.83496 | AC66: =STDEV(R66:U66) -> 97.69916682
H67: 1901.07896 | I67: 1633.78952 | J67: 1892.16136 | K67: 1588.50288 | M67: 1646.76832 | N67: 1854.45184 | O67: 1750.68108 | P67: 1949.65148 | R67: 1854.2644 | S67: 1902.94484 | T67: 1889.71044 | U67: 1815.6262 | X67: 1753.88318 | Y67: 165.8921171 | Z67: =SUM(M67:P67)/4 -> 1800.38818 | AA67: =STDEV(M67:P67) -> 130.7316198 | AB67: =SUM(R67:U67)/4 -> 1865.63647 | AC67: =STDEV(R67:U67) -> 39.16555283
H68: 1592.0188 | I68: 2388.728544 | J68: 1920.55 | K68: 1437.05136 | M68: 1625.8006 | N68: 1688.65832 | O68: 1628.25152 | P68: 1986.79016 | R68: 1865.70392 | S68: 1769.17516 | T68: 1676.85244 | U68: 1770.71728 | X68: 1834.587176 | Y68: 420.8469258 | Z68: =SUM(M68:P68)/4 -> 1732.37515 | AA68: =STDEV(M68:P68) -> 172.083336 | AB68: =SUM(R68:U68)/4 -> 1770.6122 | AC68: =STDEV(R68:U68) -> 77.10469924

Sheet Sheet2
T9: AOI 1 Blue
T10: AOI 2 Red
T11: AOI 3 GOLD
T12: AOI 4 Light Blue
